[Event "SixDays Budapest March IM A 2025"]
[Site "Budapest"]
[Date "2025.03.25"]
[Round "2.1"]
[White "Ilincic, Zlatko"]
[Black "Nakahara, Kan"]
[Result "1-0"]
[Annotator "TA"]
[ECO "E00"]
[WhiteElo "2251"]
[BlackElo "2113"]
[PlyCount "69"]
[EventDate "2025.03.23"]
[EventCountry "HUN"]
[SourceTitle "playchess.com"]
[Source "ChessBase"]
[SourceQuality "1"]
[TimeControl "5400+30"]

{[%evp 10,69,0,0,75,49,60,35,36,44,91,70,83,96,90,83,83,74,122,109,339,88,71,63,78,7,34,-61,92,72,85,85,81,62,117,86,120,126,120,113,108,96,113,67,120,99,104,99,141,125,128,83,151,140,170,172,287,290,740,654,967,963]} 1. d4 {[%emt 0:00:05]} Nf6 {[%emt 0:00:06]} 2. c4 {[%emt 0:00:10]} e6 {[%emt 0:00:13]} 3. a3 {[%emt 0:00:35]} b6 {[%emt 0:01:01]} 4. Nc3 {[%emt 0:01:08]} Bb7 {[%emt 0:00:06]} 5. d5 {[%emt 0:03:40]} exd5 {[%emt 0:07:51]} 6. cxd5 Qe7 {[%emt 0:04:07] A50: Queen's Fianchetto Defence (1 d4 Nf6 2 c4 b6).} (6... Bd6 $11) 7. Bg5 {[%emt 0:07:48][%cal Oe2e4]} h6 {[%emt 0:03:49]} 8. Bxf6 {[%emt 0:06:58]} Qxf6 {[%emt 0:00:07] White is slightly better.} 9. e3 $146 {[%emt 0:01:10]} ({Predecessor:} 9. Nf3 Na6 10. g3 Nc5 11. Bg2 a5 12. O-O Bd6 13. Nd2 O-O 14. Qc2 Be5 15. Rac1 {1-0 Tyomkin,D (2450)-Kogan,A (2515) Czerniak Memorial 13th 1997 (10)}) 9... g5 {[%emt 0:09:12]} (9... a5 $14) 10. Nf3 {[%emt 0:04:24]} Bg7 {[%emt 0:05:20]} 11. Bd3 {[%emt 0:04:51]} c6 {[%emt 0:03:49] Black is weak on the light squares} 12. Nd4 {[%emt 0:04:14]} cxd5 {[%emt 0:07:17]} 13. O-O {[%emt 0:01:46]} O-O {[%emt 0:01:10]} (13... Nc6 $142) 14. f4 $16 {[%emt 0:04:57] White sacrificed a pawn} Nc6 $2 {[%emt 0:11:41] [#]} (14... Kh8 $16 {was worth a try.}) 15. Nf5 $2 {[%emt 0:02:20] A dynamic duo of knights.} (15. Nxd5 $18 Qd6 16. Nb5 (16. Nxc6 dxc6 17. Nc3 Rad8 $17)) 15... Ne7 {[%emt 0:02:05]} 16. fxg5 {[%emt 0:05:37]} Qxg5 {[%emt 0:02:26][%csl Od5,Od7,Of7,Oh6] Black has weak pawns. A sharp opening} 17. Qe2 {[%emt 0:00:54]} (17. Nxg7 $16 {And now Nf5 would win.} d4 18. Be4) 17... d4 $1 $11 {[%emt 0:07:41]} 18. Nxd4 {[%emt 0:04:46]} ({White should try} 18. h4 $14 Qf6 19. Nxd4 Qxh4 20. Rf4) 18... f5 $2 {[%emt 0:01:08]} (18... Bxg2 $1 $15 19. Qxg2 Qxe3+ 20. Kh1 Qxd4 (20... Qxd3 21. Nd5 $11)) 19. Nf3 $16 {[%emt 0:11:22]} Qf6 {[%emt 0:02:19]} 20. Rad1 $36 {[%emt 0:01:17][%mdl 2048] White is really pushing.} Kh8 {[%emt 0:03:51]} 21. Bb5 {[%emt 0:03:10]} d5 {[%emt 0:03:35]} ({Better is} 21... Rad8 $14) 22. Ba6 {[%emt 0:01:09]} Bc6 {[%emt 0:03:43]} 23. Nd4 {[%emt 0:00:32]} Rad8 {[%emt 0:03:14]} 24. Rf3 {[%emt 0:03:56][%csl Of5] White attacks a weakness White is much more active.} Bd7 {[%emt 0:01:34]} 25. Bd3 {[%emt 0:05:54]} Qe5 {[%emt 0:01:03]} 26. Rdf1 {[%emt 0:00:09]} (26. Bb5 $16) 26... Rf6 {[%emt 0:01:44]} (26... Nc6 $1 $14) 27. Qf2 {[%emt 0:01:23]} Rdf8 {[%emt 0:01:12]} 28. Nce2 {[%emt 0:00:21][%cal Bc3e2,Be2g3,Bg3f5,Bf5g7][%mdl 32]} Re8 {[%emt 0:03:27]} 29. Ng3 {[%emt 0:00:50]} (29. Bxf5 $2 Nxf5 30. Nxf5 Rxf5 $19 (30... Qxb2 31. Nxg7 Rxf3 32. Qxf3 $14)) 29... Rf7 {[%emt 0:01:54][%cal Of5f4]} 30. b4 {[%emt 0:01:33][%cal Rd3f5]} Rc8 {[%emt 0:05:22]} (30... f4 $142 31. Rxf4 (31. exf4 $2 {is the wrong capture.} Qxd4 32. Qxd4 Bxd4+ $19) 31... Rxf4 32. Qxf4 Rf8 33. Qxe5 Rxf1+ 34. Kxf1 Bxe5) 31. Bxf5 {[%emt 0:06:18]} Nxf5 {[%emt 0:00:30]} 32. Ngxf5 {[%emt 0:02:06]} Rc3 {[%emt 0:01:21]} (32... Kh7 $142 33. h3 Rc3) 33. Qh4 {[%emt 0:00:21]} Qf6 {[%emt 0:00:53]} (33... Bxf5 34. Nxf5 Rc6 35. Nxh6 Rxh6 36. Qd8+ Kh7 37. Rxf7 Qxe3+ 38. R7f2 d4) 34. Qe1 {[%emt 0:01:00] [#]} Rxa3 {[%emt 0:01:57]} 35. Nxg7 {Weighted Error Value: White=0.34/Black=0.72  Loses game:     	---       	Black=1      Missed win:     	White=1     	---        Mistake:       	White=3     	Black=8      Inaccurate:     	White=2     	Black=3      OK:         	White=8     	Black=7      Best:        	---       	Black=1      Strong:       	---       	Black=1} 1-0

[Event "SixDays Budapest March IM A 2025"]
[Site "Budapest"]
[Date "2025.03.25"]
[Round "2.2"]
[White "Cu, Ivan Travis"]
[Black "Md Imran"]
[Result "1/2-1/2"]
[Annotator "TA"]
[ECO "A04"]
[WhiteElo "2286"]
[BlackElo "2421"]
[PlyCount "129"]
[EventDate "2025.03.23"]
[EventCountry "HUN"]
[SourceTitle "playchess.com"]
[Source "ChessBase"]
[SourceQuality "1"]
[TimeControl "5400+30"]

{[%evp 13,129,23,47,51,57,64,60,38,38,41,41,28,41,35,30,15,14,0,68,29,31,35,28,11,25,32,44,11,19,13,0,0,22,22,43,29,57,50,64,43,83,84,106,102,104,104,91,56,66,70,58,66,67,57,54,25,26,31,24,15,16,19,18,17,18,0,0,0,0,0,0,0,0,0,0,-25,-18,-35,-30,-66,-74,-72,-74,-72,-72,-83,-47,-84,-80,-81,-14,-10,-14,-85,-36,-71,-5,-25,0,0,0,0,0,0,0,0,0,-40,-54,-82,-33,-40,0,0,0,0,668,633]} 1. Nf3 {[%emt 0:00:08]} f5 {[%emt 0:01:23]} 2. c4 {[%emt 0:00:53]} Nf6 {[%emt 0:01:19]} 3. Nc3 {[%emt 0:00:44]} g6 {[%emt 0:00:54]} 4. e3 {[%emt 0:00:23]} Bg7 {[%emt 0:00:04]} 5. d4 {[%emt 0:00:32]} O-O {[%emt 0:00:04]} 6. Be2 {[%emt 0:00:15]} d6 {[%emt 0:00:39][%cal Bd7d6,Bd6e5,Be5e4][%mdl 32]} 7. O-O {[%emt 0:00:23] 7.b4 is the hot move.} Qe8 {[%emt 0:01:35]} 8. b4 {[%emt 0:01:08][%cal Bb2b4,Bb4b5][%mdl 32] A85: Dutch Defence: 2 c4 Nf6 3 Nc3.} e5 {[%emt 0:02:23]} 9. dxe5 {[%emt 0:00:35]} dxe5 {[%emt 0:00:08]} 10. Qb3 {[%emt 0:00:19] White is slightly better.} e4 {[%emt 0:04:42]} 11. Nd4 {[%emt 0:01:04]} Nc6 {[%emt 0:00:13]} 12. Nxc6 $146 {[%emt 0:03:28]} (12. Rb1 Be6 13. Nxe6 Qxe6 14. Rd1 Rfd8 15. Bb2 Qf7 16. f4 exf3 17. Bxf3 Rxd1+ 18. Rxd1 {½-½ Baron,M (1950)-Hall,T (1975) WLS MemOrg email 2017 [4]}) 12... Qxc6 {[%emt 0:07:01]} 13. b5 {[%emt 0:07:19]} Qe8 {[%emt 0:02:06]} 14. Ba3 {[%emt 0:02:20]} Rf7 {[%emt 0:00:02]} 15. Nd5 {[%emt 0:05:27]} c6 {[%emt 0:05:13]} (15... Nxd5 $11 16. cxd5 Bd7) 16. bxc6 {[%emt 0:01:23]} bxc6 {[%emt 0:00:03]} 17. Nxf6+ {[%emt 0:00:38]} Bxf6 {[%emt 0:00:03]} 18. Rad1 {[%emt 0:01:15]} Be6 {[%emt 0:00:31]} 19. Qa4 {[%emt 0:04:48]} Rb8 {[%emt 0:02:58]} 20. Bb4 {[%emt 0:13:32]} Rfb7 {[%emt 0:07:26]} 21. Bd6 {[%emt 0:06:46]} Rd8 {[%emt 0:01:56]} 22. Ba3 {[%emt 0:06:12]} Rc8 {[%emt 0:00:29]} 23. Rb1 {[%emt 0:05:35]} Rd7 {[%emt 0:00:53]} 24. Rfd1 {[%emt 0:00:34]} Be5 {[%emt 0:01:36]} 25. Bc5 {[%emt 0:01:06]} Rdc7 {[%emt 0:13:59]} 26. Qa5 {[%emt 0:03:09]} (26. Bxa7 $2 Ra8 27. Qa5 Bf7 $19 (27... Rcxa7 28. Qxe5 Bf7 29. Qf4 $16) (27... c5 $2 28. Qb6 $19)) 26... Bf7 {[%emt 0:01:35]} 27. h4 {[%emt 0:00:49]} (27. Bxa7 $2 Ra8 28. f4 (28. Rb8 $2 Qxb8 29. Bxb8 Rxa5 $19) 28... exf3 (28... Rcxa7 29. Qxe5 Qxe5 30. fxe5 $11) 29. Bxf3 Raxa7 $19 (29... Rcxa7 $2 30. Qc5 $19)) 27... f4 {[%emt 0:02:49]} 28. exf4 {[%emt 0:02:28] White has a strong bishop and is better White is much more active.} (28. Bxa7 $2 Ra8 29. exf4 Bxf4 $19 (29... Rcxa7 30. Qxe5 Qxe5 31. fxe5 $14)) 28... Bxf4 {[%emt 0:01:14]} 29. g3 {[%emt 0:01:09]} (29. Bxa7 $2 Ra8 30. g3 Rcxa7 $19) 29... Be5 {[%emt 0:00:22]} 30. Re1 {[%emt 0:03:08]} (30. Bxa7 $2 Ra8 31. a4 (31. Rb8 $2 Qxb8 32. Bxb8 Rxa5 $19) 31... Rcxa7 $19) 30... Qe6 {[%emt 0:07:32] Prevents Bg4} 31. Bf1 {[%emt 0:01:29]} Qf5 $1 {[%emt 0:00:20]} 32. Rbd1 {[%emt 0:04:18][%cal Of1g2] Prevents Bd4.} (32. Bxa7 c5 (32... Bxg3 33. Qxf5 gxf5 34. Bb6 $16) 33. Bb6 Bd4 $17) 32... Bf6 {[%emt 0:02:54]} 33. Qa3 {[%emt 0:01:09]} (33. Bg2 Be7 34. Bb4 Rb7 35. Bxe4 Qxa5 36. Bxa5 Kf8 37. Bd2) 33... Re8 {[%emt 0:00:53]} 34. Bd4 {[%emt 0:09:10]} (34. Bxa7 $2 Be7 (34... Ra8 $2 35. Bh3 $19) 35. Qe3 Rxa7 36. Qxe4 (36. Qxa7 $2 Bc5 $19) 36... Qxe4 (36... Rxa2 $2 37. Qxf5 gxf5 38. Ra1 $19) 37. Rxe4 Rxa2 $19) (34. Be3 Be5 35. Qb3 c5 36. Rd2) 34... Rd7 {[%emt 0:06:59]} 35. Bxf6 {[%emt 0:02:13]} (35. Bxa7 $2 Be7 36. Qe3 Rxa7 37. Qxe4 (37. Qxa7 $2 Bc5 $19) 37... Qf6 $19 (37... Rxa2 $2 38. Qxf5 gxf5 39. Rd4 $19) (37... Qxe4 $2 38. Rxe4 Rxa2 39. Rde1 $19)) (35. Be3 {simplifies} Be7 36. Qc1 Rxd1 37. Rxd1 Bc5 38. Re1) 35... e3 {[%emt 0:03:57]} 36. fxe3 {[%emt 0:02:50]} (36. Qb2 Rb7 37. Qd4 Rd7 38. Qf4) 36... Rxd1 {[%emt 0:00:09] Successful Defense Black} 37. Rxd1 {[%emt 0:00:04]} Qxf6 {[%emt 0:00:17]} 38. Bg2 {[%emt 0:03:32]} Qe5 {[%emt 0:00:41]} 39. Qd6 {[%emt 0:02:57]} Qxe3+ {[%emt 0:01:31]} 40. Kh2 {[%emt 0:00:08]} Bxc4 {[%emt 0:01:11]} 41. Qxc6 {[%emt 0:01:03]} Bxa2 {[%emt 0:00:27]} 42. Rd7 {[%emt 0:01:01]} Re7 {[%emt 0:02:25]} 43. Qa8+ {[%emt 0:03:19]} Kf7 {[%emt 0:00:29]} 44. Rd1 {[%emt 0:01:00] [#] Intending Rf1+ and mate.} Kg7 {[%emt 0:00:16]} 45. Rf1 {[%emt 0:00:32][%csl Gf1][%cal Ra8f8]} Bf7 {[%emt 0:00:08]} 46. Rf4 {[%emt 0:00:25]} Qc5 {[%emt 0:01:09]} 47. Ra4 {[%emt 0:00:46]} Qc7 {[%emt 0:00:02]} 48. Qf3 {[%emt 0:00:27]} a5 {[%emt 0:00:27]} 49. Qd3 {[%emt 0:00:30]} Qc5 {[%emt 0:00:29]} 50. Qd2 {[%emt 0:00:27] Prevents Re1.} Re5 {[%emt 0:00:46]} 51. Qb2 {[%emt 0:00:07] [#]} Kg8 {[%emt 0:00:18]} (51... Qb5 $1 $17 {[%cal Rb5b2]} 52. Qc3 Kg8) 52. Rd4 $1 $11 {[%emt 0:00:53]} Qc7 {[%emt 0:01:08]} (52... Qe7 {is more complex.} 53. Qd2 Qc7 54. Rd7 Re2) 53. Rf4 {[%emt 0:00:27]} (53. Qd2 $1 $11 {remains equal.}) 53... Qe7 {[%emt 0:00:53]} (53... h5 $17) 54. Qf2 {[%emt 0:00:35]} Be6 {[%emt 0:01:50]} ({Black should play} 54... h6 $17) 55. Qb2 {[%emt 0:00:31]} Bf5 {[%emt 0:03:32]} 56. Qb8+ {[%emt 0:00:29]} Kg7 {[%emt 0:00:47]} 57. Rc4 {[%emt 0:00:25]} Rc5 {[%emt 0:01:44]} 58. Qb2+ {[%emt 0:00:32]} Qe5 {[%emt 0:00:10]} 59. Qb7+ {[%emt 0:00:23]} Kh6 {[%emt 0:00:10]} 60. Rf4 {[%emt 0:00:43]} Rc1 {[%emt 0:00:56]} 61. Qf3 {[%emt 0:00:32]} Rc2 {[%emt 0:00:40]} (61... Re1 $17) 62. Ra4 $1 $15 {[%emt 0:00:30]} Qc5 {[%emt 0:01:02]} 63. Rxa5 {[%emt 0:00:27]} Qd4 {[%emt 0:02:30]} (63... Qxa5 $5 64. Qe3+ $8 Kg7 65. Qe7+ Kg8 66. Qe8+ Kg7 67. Qe7+ $11) 64. Ra3 {[%emt 0:00:32]} Be4 $2 {[%mdl 8192]} (64... Kg7 $11) 65. Qf8+ {[%mdl 32768] Weighted Error Value: White=0.11 (very precise) /Black=0.24 (precise)  An unexpected result.  Loses game:     	---       	Black=1      Mistake:       	White=1     	Black=5      Inaccurate:     	White=9     	Black=4      OK:         	White=24    	Black=21     Best:        	White=2     	Black=1      Strong:       	White=2     	Black=1} 1/2-1/2

[Event "SixDays Budapest March IM A 2025"]
[Site "Budapest"]
[Date "2025.03.25"]
[Round "2.3"]
[White "Kustar, Sandor"]
[Black "Singh, Siddharth"]
[Result "0-1"]
[Annotator "TA"]
[ECO "A33"]
[WhiteElo "2231"]
[BlackElo "2239"]
[PlyCount "54"]
[EventDate "2025.03.23"]
[EventCountry "HUN"]
[SourceTitle "playchess.com"]
[Source "ChessBase"]
[SourceQuality "1"]
[TimeControl "5400+30"]

{[%evp 11,54,5,14,21,25,2,10,0,-9,-17,-16,-72,-16,-15,-16,-12,-16,-18,-20,-21,-12,-10,-18,-20,-18,-10,0,-350,-332,-372,-402,-387,-366,-358,-382,-479,-480,-516,-527,-526,-527,-510,-504,-685,-630]} 1. Nf3 {[%emt 0:00:12]} c5 {[%emt 0:00:10]} 2. c4 {[%emt 0:00:21]} Nf6 {[%emt 0:00:06]} 3. d4 {[%emt 0:00:27]} cxd4 {[%emt 0:00:07]} 4. Nxd4 {[%emt 0:00:06]} Nc6 {[%emt 0:00:06]} 5. Nc3 {[%emt 0:00:34]} e6 {[%emt 0:00:06]} 6. a3 {[%emt 0:05:07]} Bc5 {[%emt 0:00:06]} 7. Nb3 {[%emt 0:01:44] A33: Symmetrical English: 2 Nf3 Nf6 3 d4 cxd4 4 Nxd4 e6 5 Nc3 Nc6.} Bb6 $1 {[%emt 0:00:07][%mdl 4] outshines the older 7...Be7.} 8. c5 {[%emt 0:09:58]} Bc7 {[%emt 0:00:05]} 9. Nb5 {[%emt 0:03:35] The position is equal.} O-O {[%emt 0:00:07]} 10. Nxc7 {[%emt 0:03:08]} Qxc7 {[%emt 0:00:05]} 11. Bg5 {[%emt 0:11:27]} (11. g3 $11) 11... Ne4 $146 {[%emt 0:06:45]} (11... Qe5 $17 12. Bxf6 Qxf6) (11... Qe5 12. Qc1 b6 13. Bf4 Qf5 14. f3 e5 15. Bg3 e4 16. Qc2 Re8 17. e3 Bb7 {0-1 Kacheishvili,G (2590)-Bruzon Batista,L (2652) Saint Louis Spring-A 2017 (8)}) 12. Be3 $11 {[%emt 0:01:26]} Rd8 {[%emt 0:07:35]} 13. f3 {[%emt 0:00:54]} Nf6 {[%emt 0:00:21]} 14. Bf2 {[%emt 0:04:10]} d5 {[%emt 0:06:15][%cal Od5d4]} 15. cxd6 {[%emt 0:04:34]} Rxd6 {[%emt 0:00:07]} 16. Qc2 {[%emt 0:00:15]} e5 {[%emt 0:00:05]} 17. Rc1 {[%emt 0:01:12]} Be6 {[%emt 0:11:09] [#]} 18. Nc5 {[%emt 0:00:13]} Nd4 {[%emt 0:00:05]} 19. Qc3 {[%emt 0:05:00][%mdl 8192]} (19. Bxd4 $11 exd4 20. Nxe6 Qxc2 21. Rxc2 Rxe6 22. Kf2) 19... Rc6 $19 {[%emt 0:03:56] and ...Nd5 should not be overlooked White is weak on the light squares} 20. Bg3 {[%emt 0:21:14]} Rc8 {[%emt 0:03:25]} ({Don't play} 20... Nd5 21. Qxd4 exd4 22. Bxc7 Rxc7 23. b4 $19) 21. b4 {[%emt 0:04:18]} b6 {[%emt 0:00:07]} 22. e3 {[%emt 0:01:19] [#]} Nb3 {[%emt 0:00:05][%mdl 512] A dynamic duo of knights.} 23. Rd1 {[%emt 0:11:18][%cal Oc5e6]} (23. Bxe5 Qe7) 23... bxc5 {[%emt 0:01:40] Black is clearly winning.} 24. b5 {[%emt 0:00:05][%cal Og3e5] aiming for Bxe5!.} Rd6 {[%emt 0:00:38]} 25. Rxd6 {[%emt 0:01:35]} Qxd6 {[%emt 0:00:13]} 26. Bxe5 {[%emt 0:00:20]} Qd8 {[%emt 0:00:09]} 27. Bd3 {[%emt 0:03:11]} c4 {[%emt 0:00:32] Weighted Error Value: White=0.48/Black=0.06 (flawless)   Loses game:     	White=1     	---        Mistake:       	White=1     	Black=1      Inaccurate:     	White=1     	---        OK:         	White=8     	Black=13     Best:        	White=1     	Black=2} 0-1

[Event "SixDays Budapest March IM A 2025"]
[Site "Budapest"]
[Date "2025.03.25"]
[Round "2.4"]
[White "Mrithyunjay Mahadevan"]
[Black "Li, Yilin"]
[Result "0-1"]
[Annotator "TA"]
[ECO "B53"]
[WhiteElo "2295"]
[BlackElo "1904"]
[PlyCount "60"]
[EventDate "2025.03.23"]
[EventCountry "HUN"]
[SourceTitle "playchess.com"]
[Source "ChessBase"]
[SourceQuality "1"]
[TimeControl "5400+30"]

{[%evp 9,60,7,25,15,85,84,71,72,91,77,127,116,145,143,135,74,85,78,78,61,75,24,26,26,104,-146,-127,-162,-162,-384,-400,-403,-395,-400,-387,-424,-417,-471,-459,-422,-442,-517,-508,-604,-600,-5734,-5173,-4962,-4898,-29994,-29995,-29996,-29997]} 1. e4 {[%emt 0:02:49]} c5 {[%emt 0:00:36]} 2. Nf3 {[%emt 0:00:04]} d6 {[%emt 0:00:05]} 3. d4 {[%emt 0:00:04]} cxd4 {[%emt 0:00:04]} 4. Qxd4 {[%emt 0:00:06]} Nc6 {[%emt 0:00:12]} 5. Qe3 {[%emt 0:00:06]} g6 {[%emt 0:02:54]} 6. Be2 {[%emt 0:00:57] B53: Sicilian: 2...d6: Lines with Qxd4.} d5 $146 {[%emt 0:08:26]} (6... Nf6 $11) (6... Bg7 7. O-O Nf6 8. h3 O-O 9. Rd1 Qb6 10. Qxb6 axb6 11. Nc3 Nb4 12. a3 Be6 {0-1 Abdusattorov,N (2716)-Vachier Lagrave,M (2727) Tata Steel India blitz 2023 (15)}) 7. exd5 $16 {[%emt 0:03:45]} Qxd5 {[%emt 0:02:51]} 8. O-O {[%emt 0:06:20] White is better.} Bg7 {[%emt 0:02:59]} 9. Nc3 {[%emt 0:07:44]} Qd8 {[%emt 0:21:48]} (9... Qe6 $142) 10. Rd1 {[%emt 0:01:25]} Bd7 {[%emt 0:00:13]} 11. Nb5 {[%emt 0:01:38]} Kf8 {[%emt 0:06:32]} 12. Ng5 {[%emt 0:14:01]} ({White should play} 12. Qb3) 12... h6 {[%emt 0:12:13]} 13. Ne4 {[%emt 0:02:41] A sharp opening} Qc8 {[%emt 0:04:26]} 14. c3 {[%emt 0:04:25]} Nf6 {[%emt 0:09:39]} 15. Nxf6 {[%emt 0:04:39]} (15. Nc5 $16) 15... Bxf6 $11 {[%emt 0:00:26]} 16. Qg3 {[%emt 0:00:22][%cal Ob5d6]} a6 {[%emt 0:01:26]} (16... Bf5 $11) 17. Nc7 $2 {[%emt 0:01:41]} (17. Nd6 $1 $16 {[%cal Rd6c8] stays on course.} exd6 18. Qxd6+ Kg7 19. Qxd7) 17... Be5 $17 {[%emt 0:00:27]} 18. Bf4 {[%emt 0:01:51]} Qxc7 {[%emt 0:00:39]} 19. Bxe5 {[%emt 0:00:29]} (19. Rxd7 Qxd7 20. Bxe5) 19... Qxe5 $19 {[%emt 0:04:21]} (19... Nxe5 20. Rxd7 Qxd7 21. Qxe5 $11) 20. Rxd7 {[%emt 0:01:39] [#] and Qxe5 would now be decisive} Qxe2 {[%emt 0:00:13]} 21. Rxb7 {[%emt 0:00:20]} Kg7 {[%emt 0:02:58]} 22. h3 {[%emt 0:02:05]} Rab8 {[%emt 0:01:17]} 23. Qc7 {[%emt 0:01:06]} Rxb7 {[%emt 0:03:37]} 24. Qxb7 {[%emt 0:00:03]} Ne5 {[%emt 0:00:45]} 25. Rf1 {[%emt 0:01:39]} Rd8 {[%emt 0:02:17]} 26. f4 {[%emt 0:00:40]} Nc4 {[%emt 0:00:28]} 27. Qxa6 {[%emt 0:00:49]} Rd2 {[%emt 0:00:22][%csl Gd2][%cal Re2g2] [#]} 28. Qc6 {[%emt 0:00:06]} Ne3 {[%emt 0:01:02]} 29. Rb1 {[%emt 0:00:06]} Nxg2 {[%emt 0:00:20]} 30. Qc5 {[%emt 0:00:10]} Nxf4 {[%emt 0:00:19] Weighted Error Value: White=0.79/Black=0.14 (very precise)   Mistake:       	White=4     	Black=3      Inaccurate:     	White=1     	---        OK:         	White=7     	Black=9      Best:        	White=1     	Black=2} (30... Rxb2 $2 31. Rxb2 Qxb2 32. Qd4+ Kh7 33. Qd5 $19) 0-1

[Event "SixDays Budapest March IM A 2025"]
[Site "Budapest"]
[Date "2025.03.25"]
[Round "2.5"]
[White "Karacsonyi, Bank"]
[Black "Heimisson, Hilmir Freyr"]
[Result "0-1"]
[Annotator "TA"]
[ECO "D02"]
[WhiteElo "2162"]
[BlackElo "2388"]
[PlyCount "64"]
[EventDate "2025.03.23"]
[EventCountry "HUN"]
[SourceTitle "playchess.com"]
[Source "ChessBase"]
[SourceQuality "1"]
[TimeControl "5400+30"]

{[%evp 11,64,-19,-20,-11,-13,-10,-14,-6,8,-29,-32,-43,13,-95,-106,-100,-110,-161,-78,-331,-351,-339,-353,-343,-347,-382,-385,-422,-422,-433,-426,-427,-414,-440,-435,-424,-414,-424,-422,-419,-416,-441,-442,-532,-524,-494,-488,-557,-522,-574,-571,-588,-571,-595,-593]} 1. d4 {[%emt 0:00:03]} Nf6 {[%emt 0:09:02]} 2. Bf4 {[%emt 0:00:13]} d5 {[%emt 0:01:06]} 3. Nf3 {[%emt 0:00:13]} e6 {[%emt 0:01:48]} 4. e3 {[%emt 0:00:07]} Bd6 {[%emt 0:00:28]} 5. Ne5 {[%emt 0:00:43]} O-O {[%emt 0:01:14]} 6. Nd2 {[%emt 0:02:57]} c5 {[%emt 0:04:13]} 7. c3 {[%emt 0:02:23] D02: 1 d4 d5 2 Nf3 sidelines, including 2...Nf6 3 g3 and 2...Nf6 3 Bf4.} Qc7 {[%emt 0:05:07]} 8. Bd3 {[%emt 0:02:59]} Nbd7 {[%emt 0:10:21][%cal Bb8d7,Bd7f6,Bf6g4][%mdl 32]} 9. Ndf3 {[%emt 0:04:30] The position is equal.} Ne4 {[%emt 0:03:13]} 10. Qc2 {[%emt 0:05:04]} Ndf6 {[%emt 0:04:17]} 11. g4 {[%emt 0:08:19]} cxd4 $146 {[%emt 0:10:01]} (11... c4 $15 12. Be2 b5) ({Predecessor:} 11... c4 12. Be2 Nd7 13. g5 b5 14. a3 a5 15. Rg1 Kh8 16. h4 Rb8 17. h5 f6 18. gxf6 Ndxf6 {1-0 Kamsky,G (2665)-Steinberg,N (2553) Titled Tuesday intern op 24th Nov blitz 2020 (9)}) 12. exd4 {[%emt 0:22:33] White sacrificed a pawn. A sharp opening} (12. cxd4 $11 Qxc2 13. Bxc2) 12... Nxg4 $17 {[%emt 0:01:18]} 13. Bxe4 {[%emt 0:07:47]} dxe4 {[%emt 0:00:20]} 14. Qxe4 {[%emt 0:02:10]} f6 {[%emt 0:08:49]} 15. Bg3 {[%emt 0:05:34][%mdl 8192] White does not recover from this.} (15. Nd3 $17 {might work better.} Bxf4 16. Qxf4 Qxf4 (16... e5 17. Qg3 $17) 17. Nxf4) 15... fxe5 $19 {[%emt 0:03:10]} 16. dxe5 {[%emt 0:03:34]} Be7 {[%emt 0:02:20]} 17. Qxg4 {[%emt 0:00:38]} Qc6 {[%emt 0:00:24][%cal Oh7h5] [#] ...h5! would now be deadly.} 18. O-O-O {[%emt 0:02:56]} Qxf3 {[%emt 0:01:13]} 19. Qa4 {[%emt 0:02:22]} a6 {[%emt 0:02:45]} 20. Rhe1 {[%emt 0:00:55]} b5 {[%emt 0:00:57]} 21. Qb3 {[%emt 0:00:09] [#]} b4 $1 {[%emt 0:02:37]} 22. c4 {[%emt 0:02:05]} Qxb3 {[%emt 0:01:45]} 23. axb3 {[%emt 0:00:02]} Rf3 {[%emt 0:00:57]} 24. Kc2 {[%emt 0:00:09]} Kf7 {[%emt 0:00:54]} 25. Rd4 {[%emt 0:00:33]} Ra7 {[%emt 0:01:11]} 26. Ra1 {[%emt 0:00:54]} Ke8 {[%emt 0:00:36] Black is clearly winning.} 27. Rad1 {[%emt 0:00:39]} Rd7 {[%emt 0:00:37]} 28. Rxd7 {[%emt 0:00:04]} Bxd7 {[%emt 0:00:03]} 29. Ra1 {[%emt 0:00:13]} Bc8 {[%emt 0:00:04]} 30. h4 {[%emt 0:00:21]} Bb7 {[%emt 0:00:26]} 31. Re1 {[%emt 0:00:34]} Bc5 {[%emt 0:00:15]} 32. Re2 {[%emt 0:00:07]} h5 {[%emt 0:00:05] Weighted Error Value: White=0.37/Black=0.05 (flawless)   Loses game:     	White=1     	---        Mistake:       	White=1     	Black=1      Inaccurate:     	White=2     	---        OK:         	White=2     	Black=14     Best:        	---       	Black=4} 0-1